[Event "Early-Titled-Tuesday-Blitz-January-23-2024"]
[Site "Chess.com"]
[Date "2024.01.23"]
[Round "4"]
[White "KetiTsatsalashvili"]
[Black "Adar_07"]
[Result "0-1"]
[WhiteElo "2417"]
[BlackElo "2647"]
[TimeControl "180+1"]
[EndTime "8:37:30 PST"]
[Termination "Adar_07 won by resignation"]

1. d4 {[%clk 0:02:54.2]} 1... Nf6 {[%clk 0:02:57.2]} 2. Nf3 {[%clk 0:02:53.8]}
2... e6 {[%clk 0:02:55.8]} 3. e3 {[%clk 0:02:52]} 3... b6 {[%clk 0:02:53]} 4.
Bd3 {[%clk 0:02:52.6]} 4... Bb7 {[%clk 0:02:52.4]} 5. Nbd2 {[%clk 0:02:52.4]}
5... d5 {[%clk 0:02:50.7]} 6. O-O {[%clk 0:02:51.4]} 6... c5 {[%clk 0:02:51]} 7.
b3 {[%clk 0:02:51.2]} 7... Nbd7 {[%clk 0:02:50.9]} 8. Bb2 {[%clk 0:02:51.2]}
8... Bd6 {[%clk 0:02:51]} 9. Ne5 {[%clk 0:02:51.2]} 9... h5 {[%clk 0:02:49.4]}
10. f4 {[%clk 0:02:45.7]} 10... g6 {[%clk 0:02:44.8]} 11. Qe2 {[%clk 0:02:39.7]}
11... Rc8 {[%clk 0:02:41.1]} 12. a4 {[%clk 0:02:33.5]} 12... Qe7 {[%clk
0:02:21.9]} 13. a5 {[%clk 0:02:24.1]} 13... O-O {[%clk 0:02:16.2]} 14. axb6
{[%clk 0:02:22]} 14... axb6 {[%clk 0:02:17.1]} 15. Ra7 {[%clk 0:02:21.2]} 15...
Rc7 {[%clk 0:02:16]} 16. Ndf3 {[%clk 0:02:08.5]} 16... c4 {[%clk 0:02:07.6]} 17.
bxc4 {[%clk 0:01:45.3]} 17... dxc4 {[%clk 0:02:08.5]} 18. Bxc4 {[%clk
0:01:42.1]} 18... Bxf3 {[%clk 0:02:07.9]} 19. Qxf3 {[%clk 0:01:41.7]} 19... Bxe5
{[%clk 0:01:58.6]} 20. fxe5 {[%clk 0:01:36.2]} 20... Rxa7 {[%clk 0:01:58.6]} 21.
exf6 {[%clk 0:01:36.3]} 21... Qb4 {[%clk 0:01:57.5]} 22. Bb3 {[%clk 0:01:29.4]}
22... Ra5 {[%clk 0:01:49.8]} 23. e4 {[%clk 0:01:22.8]} 23... Qd2 {[%clk
0:01:40.6]} 24. Bxe6 {[%clk 0:01:06.3]} 24... fxe6 {[%clk 0:01:35.8]} 25. f7+
{[%clk 0:01:06.2]} 25... Kh7 {[%clk 0:01:35.1]} 26. Bc3 {[%clk 0:00:38.2]} 26...
Qxc2 {[%clk 0:01:34.6]} 27. Bxa5 {[%clk 0:00:38.1]} 27... bxa5 {[%clk
0:01:35.5]} 28. d5 {[%clk 0:00:28.2]} 28... exd5 {[%clk 0:01:33]} 29. exd5
{[%clk 0:00:27.9]} 29... Ne5 {[%clk 0:01:33.4]} 30. Qe3 {[%clk 0:00:20.6]} 30...
Rxf7 {[%clk 0:01:31.2]} 31. Rxf7+ {[%clk 0:00:17.9]} 31... Nxf7 {[%clk
0:01:32.1]} 32. Qe7 {[%clk 0:00:16.5]} 32... Qd1+ {[%clk 0:01:32.2]} 33. Kf2
{[%clk 0:00:16.1]} 33... Qxd5 {[%clk 0:01:33.1]} 34. Qa7 {[%clk 0:00:14.9]}
34... Qa2+ {[%clk 0:01:31]} 35. Kf3 {[%clk 0:00:13.8]} 35... Qb3+ {[%clk
0:01:30.5]} 36. Kf4 {[%clk 0:00:10.7]} 36... a4 {[%clk 0:01:31.4]} 37. g4 {[%clk
0:00:10.1]} 37... Qc4+ {[%clk 0:01:31.3]} 38. Ke3 {[%clk 0:00:09.8]} 38... hxg4
{[%clk 0:01:31.5]} 39. Qd7 {[%clk 0:00:08.5]} 39... a3 {[%clk 0:01:28.9]} 40.
Qe7 {[%clk 0:00:09.1]} 40... a2 {[%clk 0:01:28.4]} 41. Qh4+ {[%clk 0:00:09.1]}
41... Kg7 {[%clk 0:01:28.3]} 42. Qe1 {[%clk 0:00:07.1]} 42... Qe6+ {[%clk
0:01:27.8]} 43. Kf4 {[%clk 0:00:07]} 43... Qxe1 {[%clk 0:01:28.7]} 0-1

[Event "Early-Titled-Tuesday-Blitz-January-23-2024"]
[Site "Chess.com"]
[Date "2024.01.23"]
[Round "4"]
[White "NovakRatko"]
[Black "Alenzer"]
[Result "0-1"]
[WhiteElo "2337"]
[BlackElo "2171"]
[TimeControl "180+1"]
[EndTime "8:37:32 PST"]
[Termination "Alenzer won on time"]

1. d4 {[%clk 0:01:42.7]} 1... d5 {[%clk 0:02:58.4]} 2. c4 {[%clk 0:01:43.1]}
2... dxc4 {[%clk 0:02:51.5]} 3. e4 {[%clk 0:01:43.1]} 3... e5 {[%clk 0:02:49.5]}
4. Nf3 {[%clk 0:01:38.8]} 4... Bb4+ {[%clk 0:02:46.8]} 5. Bd2 {[%clk 0:01:35.8]}
5... Bxd2+ {[%clk 0:02:45.4]} 6. Qxd2 {[%clk 0:01:33.3]} 6... exd4 {[%clk
0:02:41.7]} 7. Bxc4 {[%clk 0:01:31.4]} 7... Ne7 {[%clk 0:02:09]} 8. Nxd4 {[%clk
0:01:26.4]} 8... O-O {[%clk 0:02:08.3]} 9. O-O {[%clk 0:01:25.4]} 9... Nbc6
{[%clk 0:02:08]} 10. Nxc6 {[%clk 0:01:25.1]} 10... Nxc6 {[%clk 0:02:07.9]} 11.
Qc3 {[%clk 0:01:17.6]} 11... Qe7 {[%clk 0:02:06.6]} 12. Re1 {[%clk 0:01:11]}
12... Be6 {[%clk 0:02:06.1]} 13. Nd2 {[%clk 0:01:07.6]} 13... Rad8 {[%clk
0:02:02.5]} 14. Nf3 {[%clk 0:01:04.6]} 14... a6 {[%clk 0:01:52.5]} 15. Bxe6
{[%clk 0:01:02.1]} 15... Qxe6 {[%clk 0:01:51.7]} 16. a3 {[%clk 0:01:00.8]} 16...
Rd7 {[%clk 0:01:46.3]} 17. Rac1 {[%clk 0:00:58.5]} 17... Rfd8 {[%clk 0:01:45.4]}
18. h3 {[%clk 0:00:57.4]} 18... Rd3 {[%clk 0:01:34.7]} 19. Qc5 {[%clk 0:00:55]}
19... R8d6 {[%clk 0:01:06.1]} 20. a4 {[%clk 0:00:36.5]} 20... Rxf3 {[%clk
0:01:00.8]} 21. gxf3 {[%clk 0:00:33.4]} 21... Qxh3 {[%clk 0:01:00.7]} 22. Qxd6
{[%clk 0:00:08.6]} 22... cxd6 {[%clk 0:00:59]} 23. Rc3 {[%clk 0:00:08.4]} 23...
h5 {[%clk 0:00:55.9]} 24. Ree3 {[%clk 0:00:05.6]} 24... h4 {[%clk 0:00:55]} 25.
f4 {[%clk 0:00:05.6]} 25... Qg4+ {[%clk 0:00:52.3]} 26. Kf1 {[%clk 0:00:06.1]}
26... Nd4 {[%clk 0:00:51.2]} 0-1

[Event "Early-Titled-Tuesday-Blitz-January-23-2024"]
[Site "Chess.com"]
[Date "2024.01.23"]
[Round "4"]
[White "Pastore1978"]
[Black "IsaqueGoncalvesSanto"]
[Result "1/2-1/2"]
[WhiteElo "2278"]
[BlackElo "1800"]
[TimeControl "180+1"]
[EndTime "8:37:33 PST"]
[Termination "Game drawn by repetition"]

1. d4 {[%clk 0:03:00.9]} 1... d5 {[%clk 0:02:56]} 2. c4 {[%clk 0:02:59.8]} 2...
c6 {[%clk 0:02:55.6]} 3. cxd5 {[%clk 0:02:59.5]} 3... cxd5 {[%clk 0:02:55.2]} 4.
Nc3 {[%clk 0:02:59.8]} 4... Nf6 {[%clk 0:02:55.3]} 5. g3 {[%clk 0:03:00]} 5...
Bf5 {[%clk 0:02:54.7]} 6. Bg2 {[%clk 0:03:00.1]} 6... e6 {[%clk 0:02:53.8]} 7.
Nf3 {[%clk 0:02:59.4]} 7... Bb4 {[%clk 0:02:51.2]} 8. O-O {[%clk 0:02:58.7]}
8... O-O {[%clk 0:02:48.4]} 9. Ne5 {[%clk 0:02:57.4]} 9... Qa5 {[%clk
0:02:22.6]} 10. Bd2 {[%clk 0:02:39.8]} 10... Nbd7 {[%clk 0:02:05.4]} 11. f4
{[%clk 0:02:36.6]} 11... h6 {[%clk 0:01:54.5]} 12. a3 {[%clk 0:02:35.4]} 12...
Bxc3 {[%clk 0:01:46.4]} 13. Bxc3 {[%clk 0:02:36.3]} 13... Qb6 {[%clk 0:01:43.8]}
14. Qa4 {[%clk 0:02:31]} 14... Nxe5 {[%clk 0:01:31.7]} 15. fxe5 {[%clk
0:02:31.9]} 15... Ne4 {[%clk 0:01:31.3]} 16. Qb4 {[%clk 0:02:08.1]} 16... Nxc3
{[%clk 0:01:25.4]} 17. Qxc3 {[%clk 0:02:02.4]} 17... Rac8 {[%clk 0:01:25]} 18.
Qd2 {[%clk 0:01:59]} 18... Rc2 {[%clk 0:01:23.4]} 19. Qf4 {[%clk 0:01:43.7]}
19... Rxe2 {[%clk 0:01:11.5]} 20. b4 {[%clk 0:01:39.8]} 20... Be4 {[%clk
0:01:08.8]} 21. Bxe4 {[%clk 0:01:16.6]} 21... Rxe4 {[%clk 0:01:07.4]} 22. Qf2
{[%clk 0:01:14]} 22... Qxd4 {[%clk 0:01:03.3]} 23. Qxd4 {[%clk 0:01:14.2]} 23...
Rxd4 {[%clk 0:01:03]} 24. Rac1 {[%clk 0:01:13.7]} 24... Rc4 {[%clk 0:01:01.6]}
25. Rxc4 {[%clk 0:00:50.6]} 25... dxc4 {[%clk 0:01:01.2]} 26. Rc1 {[%clk
0:00:49.7]} 26... b5 {[%clk 0:00:59.2]} 27. Kf2 {[%clk 0:00:49.2]} 27... Rd8
{[%clk 0:00:58.2]} 28. Ke3 {[%clk 0:00:48]} 28... Rd3+ {[%clk 0:00:56.9]} 29.
Ke4 {[%clk 0:00:48.5]} 29... Rxa3 {[%clk 0:00:52.1]} 30. Rd1 {[%clk 0:00:48.5]}
30... Kf8 {[%clk 0:00:42]} 31. Rd8+ {[%clk 0:00:41.9]} 31... Ke7 {[%clk
0:00:41.8]} 32. Rb8 {[%clk 0:00:42.3]} 32... a6 {[%clk 0:00:40.9]} 33. Rb7+
{[%clk 0:00:42.6]} 33... Kf8 {[%clk 0:00:30.2]} 34. Rb8+ {[%clk 0:00:42.8]}
34... Ke7 {[%clk 0:00:30.8]} 35. Rb7+ {[%clk 0:00:43.5]} 35... Ke8 {[%clk
0:00:31.4]} 36. Rb8+ {[%clk 0:00:43.9]} 36... Ke7 {[%clk 0:00:31]} 1/2-1/2

[Event "Early-Titled-Tuesday-Blitz-January-23-2024"]
[Site "Chess.com"]
[Date "2024.01.23"]
[Round "4"]
[White "Witik"]
[Black "ilushka"]
[Result "1-0"]
[WhiteElo "2668"]
[BlackElo "2456"]
[TimeControl "180+1"]
[EndTime "8:37:36 PST"]
[Termination "Witik won on time"]

1. d4 {[%clk 0:02:59.8]} 1... e6 {[%clk 0:03:00.4]} 2. Nf3 {[%clk 0:02:59.5]}
2... Nf6 {[%clk 0:03:00.3]} 3. c4 {[%clk 0:02:59.6]} 3... Bb4+ {[%clk
0:03:00.5]} 4. Bd2 {[%clk 0:02:59.6]} 4... Qe7 {[%clk 0:03:00.6]} 5. g3 {[%clk
0:02:58.3]} 5... Nc6 {[%clk 0:02:59.9]} 6. Nc3 {[%clk 0:02:58.5]} 6... Bxc3
{[%clk 0:02:55.6]} 7. Bxc3 {[%clk 0:02:58.5]} 7... Ne4 {[%clk 0:02:56.1]} 8. Rc1
{[%clk 0:02:58.3]} 8... Nxc3 {[%clk 0:02:56.1]} 9. Rxc3 {[%clk 0:02:58.1]} 9...
d6 {[%clk 0:02:56.2]} 10. d5 {[%clk 0:02:52.9]} 10... Ne5 {[%clk 0:02:52.6]} 11.
Nxe5 {[%clk 0:02:42.3]} 11... dxe5 {[%clk 0:02:53.5]} 12. Bg2 {[%clk 0:02:42.9]}
12... O-O {[%clk 0:02:40.9]} 13. O-O {[%clk 0:02:42.4]} 13... Rd8 {[%clk
0:02:36]} 14. Qb3 {[%clk 0:02:34.8]} 14... a5 {[%clk 0:02:18.2]} 15. a3 {[%clk
0:02:10.5]} 15... Qc5 {[%clk 0:02:03.3]} 16. e3 {[%clk 0:02:02.5]} 16... a4
{[%clk 0:02:00.1]} 17. Qc2 {[%clk 0:02:01]} 17... Qa5 {[%clk 0:01:30.3]} 18. f4
{[%clk 0:01:54.8]} 18... exf4 {[%clk 0:01:28.9]} 19. gxf4 {[%clk 0:01:49.3]}
19... Qc5 {[%clk 0:00:48]} 20. Kh1 {[%clk 0:01:46.1]} 20... c6 {[%clk
0:00:47.5]} 21. e4 {[%clk 0:01:45.8]} 21... Qe7 {[%clk 0:00:34.5]} 22. Rg3
{[%clk 0:01:20.5]} 22... cxd5 {[%clk 0:00:30.9]} 23. cxd5 {[%clk 0:01:18.2]}
23... exd5 {[%clk 0:00:29.9]} 24. exd5 {[%clk 0:01:17.4]} 24... Qf6 {[%clk
0:00:26.9]} 25. Qc7 {[%clk 0:01:11.6]} 25... Bf5 {[%clk 0:00:23.6]} 26. Qe5
{[%clk 0:01:09]} 26... Kf8 {[%clk 0:00:13.6]} 27. Rc3 {[%clk 0:01:07.8]} 27...
Rac8 {[%clk 0:00:06.3]} 28. Rfc1 {[%clk 0:01:05.5]} 28... Rxc3 {[%clk 0:00:06]}
29. Rxc3 {[%clk 0:01:06.4]} 29... Re8 {[%clk 0:00:02.7]} 30. Qxf6 {[%clk
0:01:04.9]} 30... Re1+ {[%clk 0:00:03.2]} 31. Bf1 {[%clk 0:01:05.3]} 31... Rxf1+
{[%clk 0:00:02]} 32. Kg2 {[%clk 0:01:05.7]} 1-0

[Event "Early-Titled-Tuesday-Blitz-January-23-2024"]
[Site "Chess.com"]
[Date "2024.01.23"]
[Round "4"]
[White "TregubovP"]
[Black "Logman74"]
[Result "1-0"]
[WhiteElo "2676"]
[BlackElo "2483"]
[TimeControl "180+1"]
[EndTime "8:37:39 PST"]
[Termination "TregubovP won on time"]

1. e4 {[%clk 0:03:00.9]} 1... c5 {[%clk 0:02:57]} 2. Nf3 {[%clk 0:03:00.6]} 2...
d6 {[%clk 0:02:56.6]} 3. d4 {[%clk 0:02:58.2]} 3... cxd4 {[%clk 0:02:56.3]} 4.
Qxd4 {[%clk 0:02:58.8]} 4... a6 {[%clk 0:02:46.7]} 5. Nc3 {[%clk 0:02:57.4]}
5... Nc6 {[%clk 0:02:46.9]} 6. Qd3 {[%clk 0:02:57.8]} 6... Nf6 {[%clk
0:02:47.2]} 7. Be2 {[%clk 0:02:58]} 7... g6 {[%clk 0:02:47.7]} 8. O-O {[%clk
0:02:56.8]} 8... Bg7 {[%clk 0:02:48.3]} 9. Nd5 {[%clk 0:02:49.8]} 9... O-O
{[%clk 0:02:43.5]} 10. c3 {[%clk 0:02:47]} 10... Nxd5 {[%clk 0:02:41.5]} 11.
exd5 {[%clk 0:02:46.9]} 11... Ne5 {[%clk 0:02:42.1]} 12. Nxe5 {[%clk 0:02:46.5]}
12... Bxe5 {[%clk 0:02:42.4]} 13. Bh6 {[%clk 0:02:46.5]} 13... Bg7 {[%clk
0:02:41.5]} 14. Bxg7 {[%clk 0:02:45.4]} 14... Kxg7 {[%clk 0:02:41]} 15. Rae1
{[%clk 0:02:43.4]} 15... Qb6 {[%clk 0:02:38.8]} 16. b3 {[%clk 0:02:37.8]} 16...
Bf5 {[%clk 0:02:36.5]} 17. Qd2 {[%clk 0:02:36.7]} 17... Rac8 {[%clk 0:02:33.6]}
18. Bf3 {[%clk 0:02:32.4]} 18... Rfe8 {[%clk 0:02:26.3]} 19. Re3 {[%clk
0:02:32]} 19... Kg8 {[%clk 0:02:12.5]} 20. Rfe1 {[%clk 0:02:31.6]} 20... Qc7
{[%clk 0:02:13.1]} 21. g4 {[%clk 0:02:17.3]} 21... Bd7 {[%clk 0:02:11.6]} 22.
Rxe7 {[%clk 0:02:15.8]} 22... Rxe7 {[%clk 0:02:10.5]} 23. Rxe7 {[%clk
0:02:15.8]} 23... Qd8 {[%clk 0:02:10.8]} 24. Qe3 {[%clk 0:02:05.7]} 24... Kf8
{[%clk 0:02:05.6]} 25. Re4 {[%clk 0:02:05.7]} 25... Qf6 {[%clk 0:02:02.1]} 26.
c4 {[%clk 0:02:03.9]} 26... b5 {[%clk 0:01:55.7]} 27. Be2 {[%clk 0:02:00.2]}
27... Qa1+ {[%clk 0:01:40.5]} 28. Kg2 {[%clk 0:01:58.9]} 28... Qxa2 {[%clk
0:01:36.6]} 29. Qf4 {[%clk 0:01:48.9]} 29... Qa3 {[%clk 0:01:12.4]} 30. Qf6
{[%clk 0:01:48.4]} 30... Kg8 {[%clk 0:01:11.8]} 31. Re7 {[%clk 0:01:47.8]} 31...
Be8 {[%clk 0:01:09.8]} 32. cxb5 {[%clk 0:01:47.6]} 32... axb5 {[%clk 0:01:05.9]}
33. Bxb5 {[%clk 0:01:46.3]} 33... Qb4 {[%clk 0:00:59.9]} 34. Bd7 {[%clk
0:01:26.7]} 34... Rd8 {[%clk 0:00:21.6]} 35. h3 {[%clk 0:01:19.3]} 35... Qxb3
{[%clk 0:00:05.5]} 36. Bxe8 {[%clk 0:01:11.5]} 36... Qxd5+ {[%clk 0:00:04.5]}
37. Kh2 {[%clk 0:01:10.1]} 1-0

[Event "Early-Titled-Tuesday-Blitz-January-23-2024"]
[Site "Chess.com"]
[Date "2024.01.23"]
[Round "4"]
[White "Laico"]
[Black "mary-sanna"]
[Result "1-0"]
[WhiteElo "2341"]
[BlackElo "2187"]
[TimeControl "180+1"]
[EndTime "8:37:39 PST"]
[Termination "Laico won by checkmate"]

1. e4 {[%clk 0:02:44.8]} 1... c5 {[%clk 0:02:59.5]} 2. Nc3 {[%clk 0:02:43.5]}
2... Nc6 {[%clk 0:02:58.8]} 3. f4 {[%clk 0:02:44]} 3... g6 {[%clk 0:02:58.7]} 4.
Nf3 {[%clk 0:02:44.8]} 4... Bg7 {[%clk 0:02:59.1]} 5. Bb5 {[%clk 0:02:45.3]}
5... e6 {[%clk 0:02:51.4]} 6. Bxc6 {[%clk 0:02:44.7]} 6... dxc6 {[%clk
0:02:48.9]} 7. d3 {[%clk 0:02:45.6]} 7... Ne7 {[%clk 0:02:47.8]} 8. O-O {[%clk
0:02:46.1]} 8... O-O {[%clk 0:02:47.8]} 9. Qe1 {[%clk 0:02:46.8]} 9... b5 {[%clk
0:02:47]} 10. Qh4 {[%clk 0:02:46.8]} 10... b4 {[%clk 0:02:45.7]} 11. Na4 {[%clk
0:02:45.9]} 11... c4 {[%clk 0:02:45.3]} 12. dxc4 {[%clk 0:02:40]} 12... Ba6
{[%clk 0:02:44.6]} 13. Bd2 {[%clk 0:02:32.4]} 13... Bxc4 {[%clk 0:02:40.9]} 14.
Bxb4 {[%clk 0:02:30.4]} 14... Bd4+ {[%clk 0:01:42.1]} 15. Nxd4 {[%clk
0:01:49.7]} 15... Qxd4+ {[%clk 0:01:41.7]} 16. Rf2 {[%clk 0:01:50.2]} 16... Rfe8
{[%clk 0:01:02.4]} 17. Bc3 {[%clk 0:01:29.1]} 17... Qxe4 {[%clk 0:00:48]} 18.
Qf6 {[%clk 0:01:27]} 18... Nf5 {[%clk 0:00:26.2]} 19. Qh8# {[%clk 0:00:01.5]}
1-0

[Event "Early-Titled-Tuesday-Blitz-January-23-2024"]
[Site "Chess.com"]
[Date "2024.01.23"]
[Round "4"]
[White "stasOR4ik"]
[Black "Chesstiger64"]
[Result "1-0"]
[WhiteElo "2420"]
[BlackElo "2237"]
[TimeControl "180+1"]
[EndTime "8:37:41 PST"]
[Termination "stasOR4ik won by resignation"]

1. e4 {[%clk 0:03:00.9]} 1... e6 {[%clk 0:03:00]} 2. c4 {[%clk 0:03:00.8]} 2...
d5 {[%clk 0:02:59.8]} 3. cxd5 {[%clk 0:03:01.7]} 3... exd5 {[%clk 0:02:59.9]} 4.
exd5 {[%clk 0:03:02.6]} 4... Nf6 {[%clk 0:02:59.1]} 5. Nc3 {[%clk 0:03:03.1]}
5... Nxd5 {[%clk 0:02:58.7]} 6. Bc4 {[%clk 0:03:03.8]} 6... c6 {[%clk
0:02:59.1]} 7. Nf3 {[%clk 0:03:03.3]} 7... Be6 {[%clk 0:02:56.2]} 8. Bxd5 {[%clk
0:03:00.2]} 8... Bxd5 {[%clk 0:02:55.9]} 9. Nxd5 {[%clk 0:02:59.9]} 9... Qxd5
{[%clk 0:02:55.4]} 10. O-O {[%clk 0:02:57.1]} 10... Be7 {[%clk 0:02:55.1]} 11.
Re1 {[%clk 0:02:57.2]} 11... Nd7 {[%clk 0:02:53]} 12. Qe2 {[%clk 0:02:55.9]}
12... Qd6 {[%clk 0:02:31.5]} 13. d4 {[%clk 0:02:49]} 13... Kd8 {[%clk
0:01:57.5]} 14. Bf4 {[%clk 0:02:30.1]} 14... Qxf4 {[%clk 0:01:48]} 15. Qxe7+
{[%clk 0:02:30.6]} 15... Kc8 {[%clk 0:01:41.6]} 16. Re4 {[%clk 0:02:27.8]} 16...
Qf6 {[%clk 0:01:40.1]} 17. Rae1 {[%clk 0:02:23.3]} 17... Qxe7 {[%clk 0:01:32.7]}
18. Rxe7 {[%clk 0:02:22.7]} 18... Rf8 {[%clk 0:01:32.8]} 19. Ng5 {[%clk
0:02:22.4]} 19... Kc7 {[%clk 0:01:21.3]} 20. Nxh7 {[%clk 0:01:57.7]} 20... Rfd8
{[%clk 0:01:18.5]} 21. Rxf7 {[%clk 0:01:55.7]} 21... Kb6 {[%clk 0:01:18.6]} 22.
Ree7 {[%clk 0:01:53.6]} 22... Nf6 {[%clk 0:01:17]} 23. Rxb7+ {[%clk 0:01:49.2]}
23... Ka6 {[%clk 0:01:17]} 24. Nxf6 {[%clk 0:01:45.7]} 24... Rxd4 {[%clk
0:01:14.3]} 25. h3 {[%clk 0:01:36.8]} 25... gxf6 {[%clk 0:01:13.4]} 26. Rb3
{[%clk 0:01:32.4]} 26... Rf4 {[%clk 0:01:05.8]} 27. g3 {[%clk 0:01:18.3]} 27...
Rf5 {[%clk 0:01:04.7]} 28. Kg2 {[%clk 0:01:18.5]} 28... c5 {[%clk 0:01:01.5]}
29. g4 {[%clk 0:01:16.6]} 29... Rf4 {[%clk 0:01:00.6]} 30. Kg3 {[%clk
0:01:16.5]} 30... Rb4 {[%clk 0:01:00.7]} 31. Rxf6+ {[%clk 0:01:15]} 31... Kb5
{[%clk 0:01:00.4]} 32. Rxb4+ {[%clk 0:01:13.5]} 32... cxb4 {[%clk 0:01:00.7]}
33. g5 {[%clk 0:01:07.6]} 33... Rc8 {[%clk 0:01:00.6]} 34. g6 {[%clk 0:01:05.4]}
34... a5 {[%clk 0:00:53.6]} 35. h4 {[%clk 0:01:02.9]} 35... a4 {[%clk
0:00:53.3]} 36. h5 {[%clk 0:01:02.1]} 36... Rc1 {[%clk 0:00:53.2]} 37. Kg2
{[%clk 0:01:01.8]} 37... Rc5 {[%clk 0:00:51.8]} 38. f4 {[%clk 0:00:56.3]} 38...
a3 {[%clk 0:00:47.5]} 39. bxa3 {[%clk 0:00:55.7]} 39... bxa3 {[%clk 0:00:48]}
40. g7 {[%clk 0:00:54.3]} 40... Rc2+ {[%clk 0:00:46.8]} 41. Kf3 {[%clk
0:00:53.3]} 41... Rc3+ {[%clk 0:00:39.7]} 42. Ke4 {[%clk 0:00:52.7]} 42... Rg3
{[%clk 0:00:38.9]} 43. Rg6 {[%clk 0:00:53.1]} 43... Rxg6 {[%clk 0:00:34.1]} 44.
hxg6 {[%clk 0:00:54]} 44... Kc4 {[%clk 0:00:34.3]} 45. g8=Q+ {[%clk 0:00:53.4]}
45... Kc3 {[%clk 0:00:35]} 46. Qb3+ {[%clk 0:00:53.7]} 46... Kd2 {[%clk
0:00:34.6]} 1-0

[Event "Early-Titled-Tuesday-Blitz-January-23-2024"]
[Site "Chess.com"]
[Date "2024.01.23"]
[Round "4"]
[White "Rodalquilar"]
[Black "Flaccidmoves"]
[Result "1/2-1/2"]
[WhiteElo "2717"]
[BlackElo "2445"]
[TimeControl "180+1"]
[EndTime "8:37:42 PST"]
[Termination "Game drawn by repetition"]

1. d4 {[%clk 0:03:00.9]} 1... Nf6 {[%clk 0:02:58.9]} 2. Nf3 {[%clk 0:03:01.4]}
2... g6 {[%clk 0:02:59.3]} 3. Bf4 {[%clk 0:03:01.7]} 3... Bg7 {[%clk 0:02:58.7]}
4. e3 {[%clk 0:03:02.3]} 4... O-O {[%clk 0:02:59]} 5. Be2 {[%clk 0:03:02.9]}
5... c5 {[%clk 0:02:52.2]} 6. c3 {[%clk 0:03:02.5]} 6... d5 {[%clk 0:02:49.1]}
7. O-O {[%clk 0:03:02.6]} 7... Nc6 {[%clk 0:02:48.7]} 8. h3 {[%clk 0:03:02.9]}
8... Nd7 {[%clk 0:02:43]} 9. Nbd2 {[%clk 0:03:02.1]} 9... e5 {[%clk 0:02:41.8]}
10. dxe5 {[%clk 0:03:03]} 10... Ndxe5 {[%clk 0:02:42]} 11. Nxe5 {[%clk
0:03:03.9]} 11... Nxe5 {[%clk 0:02:42.4]} 12. Nf3 {[%clk 0:03:04.5]} 12... Nc6
{[%clk 0:02:34.3]} 13. Qb3 {[%clk 0:03:04.2]} 13... Qb6 {[%clk 0:02:22.7]} 14.
Rfd1 {[%clk 0:02:26.3]} 14... Be6 {[%clk 0:02:02.2]} 15. Qxb6 {[%clk 0:02:19.5]}
15... axb6 {[%clk 0:02:03.1]} 16. Bc7 {[%clk 0:02:19.8]} 16... d4 {[%clk
0:01:57.6]} 17. exd4 {[%clk 0:02:19.9]} 17... cxd4 {[%clk 0:01:57.3]} 18. cxd4
{[%clk 0:02:20.4]} 18... Nb4 {[%clk 0:01:26.6]} 19. a3 {[%clk 0:02:11.8]} 19...
Nd5 {[%clk 0:01:26.1]} 20. Be5 {[%clk 0:02:12]} 20... Rfc8 {[%clk 0:01:24.6]}
21. Rac1 {[%clk 0:02:06.2]} 21... f6 {[%clk 0:01:22.9]} 22. Bg3 {[%clk
0:02:01.7]} 22... Bh6 {[%clk 0:01:22.1]} 23. Rxc8+ {[%clk 0:02:01.8]} 23... Rxc8
{[%clk 0:01:22]} 24. Ne1 {[%clk 0:02:02.2]} 24... Ne7 {[%clk 0:01:13.3]} 25. Kf1
{[%clk 0:01:50.8]} 25... Kf7 {[%clk 0:01:09.9]} 26. Bf3 {[%clk 0:01:41.3]} 26...
Bd5 {[%clk 0:01:08.9]} 27. Ke2 {[%clk 0:01:41.7]} 27... Bxf3+ {[%clk 0:01:05.3]}
28. Kxf3 {[%clk 0:01:42.1]} 28... Nd5 {[%clk 0:01:02.2]} 29. Ke2 {[%clk
0:01:35.8]} 29... Ke6 {[%clk 0:00:58.9]} 30. Kd3 {[%clk 0:01:35.8]} 30... Bc1
{[%clk 0:00:50.5]} 31. Nc2 {[%clk 0:01:17.7]} 31... Bxb2 {[%clk 0:00:47.9]} 32.
Rb1 {[%clk 0:01:06.2]} 32... Bxa3 {[%clk 0:00:45.2]} 33. Ne3 {[%clk 0:01:05]}
33... Rc3+ {[%clk 0:00:26.9]} 34. Kd2 {[%clk 0:01:01]} 34... Rc6 {[%clk
0:00:27.5]} 35. Kd3 {[%clk 0:00:38.8]} 35... Rc3+ {[%clk 0:00:26.6]} 36. Kd2
{[%clk 0:00:39]} 36... Rc6 {[%clk 0:00:27.2]} 37. Kd3 {[%clk 0:00:39.3]} 37...
Rc3+ {[%clk 0:00:27.1]} 1/2-1/2

[Event "Early-Titled-Tuesday-Blitz-January-23-2024"]
[Site "Chess.com"]
[Date "2024.01.23"]
[Round "4"]
[White "FLYD"]
[Black "Boundless_Strike"]
[Result "0-1"]
[WhiteElo "2100"]
[BlackElo "2618"]
[TimeControl "180+1"]
[EndTime "8:37:44 PST"]
[Termination "Boundless_Strike won by checkmate"]

1. e4 {[%clk 0:03:00.9]} 1... d6 {[%clk 0:02:58.5]} 2. d4 {[%clk 0:03:00.8]}
2... e5 {[%clk 0:02:58.5]} 3. Nf3 {[%clk 0:02:58.4]} 3... Bg4 {[%clk 0:02:50]}
4. dxe5 {[%clk 0:02:54.7]} 4... Nc6 {[%clk 0:02:49.6]} 5. h3 {[%clk 0:02:49.8]}
5... Bh5 {[%clk 0:02:49.5]} 6. Bb5 {[%clk 0:02:43.9]} 6... Qd7 {[%clk 0:02:47]}
7. Nc3 {[%clk 0:02:40.5]} 7... a6 {[%clk 0:02:46.4]} 8. Bc4 {[%clk 0:02:33.1]}
8... O-O-O {[%clk 0:02:41.4]} 9. Be3 {[%clk 0:02:13.8]} 9... Qe8 {[%clk
0:02:39.3]} 10. exd6 {[%clk 0:02:08.6]} 10... Bxd6 {[%clk 0:02:38.7]} 11. Qe2
{[%clk 0:02:07.9]} 11... Nf6 {[%clk 0:02:36.3]} 12. Bd3 {[%clk 0:01:45.4]} 12...
Qe7 {[%clk 0:02:05.4]} 13. O-O-O {[%clk 0:01:39.7]} 13... Ba3 {[%clk 0:02:05.4]}
14. bxa3 {[%clk 0:01:13]} 14... Qxa3+ {[%clk 0:02:04.7]} 15. Kd2 {[%clk
0:00:59.7]} 15... Qb4 {[%clk 0:02:03.5]} 16. Bg5 {[%clk 0:00:45.9]} 16... Ne5
{[%clk 0:00:47.1]} 17. Bxf6 {[%clk 0:00:44.5]} 17... Bxf3 {[%clk 0:00:33.9]} 18.
gxf3 {[%clk 0:00:40.2]} 18... gxf6 {[%clk 0:00:33]} 19. Rb1 {[%clk 0:00:33.1]}
19... Nc4+ {[%clk 0:00:27.3]} 20. Ke1 {[%clk 0:00:10.1]} 20... Qxc3+ {[%clk
0:00:27.3]} 21. Kf1 {[%clk 0:00:10.7]} 21... Nd2+ {[%clk 0:00:25.5]} 22. Kg2
{[%clk 0:00:11.2]} 22... Rhg8+ {[%clk 0:00:25.1]} 23. Kh2 {[%clk 0:00:10.6]}
23... Qe5+ {[%clk 0:00:25.4]} 24. f4 {[%clk 0:00:11.5]} 24... Qxf4# {[%clk
0:00:25.7]} 0-1